[Event "17th Memorial Lezcano Montalvo 2025"]
[Site "Gran Canaria"]
[Date "2025.04.13"]
[Round "2.8"]
[White "Martinez Ramirez, Lennis"]
[Black "Sukhodolskyi, Oleksii"]
[Result "1-0"]
[Annotator "ChessBase"]
[ECO "A28"]
[WhiteElo "2443"]
[BlackElo "2070"]
[PlyCount "115"]
[EventDate "2025.04.13"]
[EventType "swiss"]
[EventCountry "ESP"]
[SourceTitle "playchess.com"]
[Source "ChessBase"]
[SourceQuality "1"]
[TimeControl "5400+30"]

1. c4 {[%emt 0:00:01]} Nf6 {[%emt 0:00:14]} 2. Nc3 {[%emt 0:00:11]} e5 {[%emt 0:00:17]} 3. Nf3 {[%emt 0:01:29]} Nc6 {[%emt 0:00:37]} 4. e3 {[%emt 0:03:11]} Bb4 {[%emt 0:02:44]} 5. Qc2 {[%emt 0:00:34]} Bxc3 {[%emt 0:01:16]} 6. Qxc3 {[%emt 0:00:12]} Qe7 {[%emt 0:00:09]} 7. a3 {[%emt 0:07:14]} a5 {[%emt 0:01:46]} 8. Be2 {[%emt 0:01:51]} a4 {[%emt 0:01:59]} 9. b4 {[%emt 0:03:00]} axb3 {[%emt 0:08:10]} 10. Bb2 {[%emt 0:00:13]} Ne4 {[%emt 0:08:25]} 11. Qxb3 {[%emt 0:00:16]} Nc5 {[%emt 0:01:50]} 12. Qc2 {[%emt 0:00:08]} Na4 {[%emt 0:13:32]} 13. Bc1 {[%emt 0:01:05]} d6 {[%emt 0:08:59]} 14. Rb1 {[%emt 0:01:33]} Qf6 {[%emt 0:01:51]} 15. O-O {[%emt 0:00:18]} O-O {[%emt 0:00:43]} 16. d3 {[%emt 0:11:23]} Ra7 {[%emt 0:09:34]} 17. Ne1 {[%emt 0:08:21]} Qg6 {[%emt 0:07:57]} 18. f4 {[%emt 0:00:48]} f5 {[%emt 0:05:11]} 19. fxe5 {[%emt 0:04:05]} dxe5 {[%emt 0:00:50]} 20. c5 {[%emt 0:01:39]} f4 {[%emt 0:06:33]} 21. Bf3 {[%emt 0:00:07]} Bf5 {[%emt 0:03:49]} 22. Be4 {[%emt 0:15:02]} Qe6 {[%emt 0:04:08]} 23. Nf3 {[%emt 0:00:16]} Bxe4 {[%emt 0:07:53]} 24. dxe4 {[%emt 0:00:05]} h6 {[%emt 0:01:12]} 25. Rd1 {[%emt 0:00:10]} Qg6 {[%emt 0:01:31]} 26. exf4 {[%emt 0:02:14]} exf4 {[%emt 0:00:10]} 27. Rd5 {[%emt 0:02:58]} Re8 {[%emt 0:01:31]} 28. Rf5 {[%emt 0:03:52]} Qe6 {[%emt 0:01:03]} 29. Bxf4 {[%emt 0:05:46]} g6 {[%emt 0:00:34]} 30. Rd5 {[%emt 0:14:57]} Qxe4 {[%emt 0:00:01]} 31. Rc1 {[%emt 0:00:37]} Qxc2 {[%emt 0:00:58]} 32. Rxc2 {[%emt 0:00:02]} g5 {[%emt 0:00:30]} 33. Bxc7 {[%emt 0:00:09]} Re3 {[%emt 0:00:31]} 34. Rd6 {[%emt 0:10:56]} g4 {[%emt 0:00:23]} 35. Rg6+ {[%emt 0:00:08]} Kf7 {[%emt 0:00:22]} 36. Rxg4 {[%emt 0:00:01]} Rc3 {[%emt 0:00:37]} 37. Rf4+ {[%emt 0:01:50]} Kg8 {[%emt 0:00:28]} 38. Re2 {[%emt 0:00:20]} Ra8 {[%emt 0:00:37]} 39. Ne5 {[%emt 0:01:24]} Nxe5 {[%emt 0:00:31]} 40. Bxe5 {[%emt 0:00:24]} Rc1+ {[%emt 0:00:22]} 41. Kf2 {[%emt 0:00:01]} Nxc5 {[%emt 0:00:39]} 42. Rg4+ {[%emt 0:00:06]} Kf7 {[%emt 0:00:06]} 43. Rg7+ {[%emt 0:00:53]} Kf8 {[%emt 0:00:14]} 44. Re3 {[%emt 0:00:02]} Rc2+ {[%emt 0:01:07]} 45. Kg3 {[%emt 0:00:27]} Ra6 {[%emt 0:00:22]} 46. Rc7 {[%emt 0:03:11]} Rg6+ {[%emt 0:00:37]} 47. Kh3 {[%emt 0:00:00]} Rc6 {[%emt 0:00:32]} 48. Bg7+ {[%emt 0:00:00]} Kg8 {[%emt 0:00:13]} 49. Re8+ {[%emt 0:00:00]} Kh7 {[%emt 0:00:07]} 50. Rh8+ {[%emt 0:00:00]} Kg6 {[%emt 0:00:08]} 51. Rxh6+ {[%emt 0:00:00]} Kg5 {[%emt 0:00:06]} 52. Rhxc6 {[%emt 0:00:00]} bxc6 {[%emt 0:00:06]} 53. Rxc6 {[%emt 0:00:00]} Rc4 {[%emt 0:00:53]} 54. g3 {[%emt 0:00:00]} Kh5 {[%emt 0:01:59]} 55. Bf8 {[%emt 0:00:00]} Ra4 {[%emt 0:00:30]} 56. Rxc5+ {[%emt 0:00:01]} Kg6 {[%emt 0:00:06]} 57. Rc6+ {[%emt 0:00:25]} Kh5 {[%emt 0:00:11]} 58. g4+ {[%emt 0:00:44]} 1-0

[Event "17th Memorial Lezcano Montalvo 2025"]
[Site "Gran Canaria"]
[Date "2025.04.13"]
[Round "2.9"]
[White "Sosa Suarez, Carla Cristina"]
[Black "Kovchan, Alexander"]
[Result "0-1"]
[Annotator "ChessBase"]
[ECO "B27"]
[WhiteElo "2056"]
[BlackElo "2433"]
[PlyCount "50"]
[EventDate "2025.04.13"]
[EventType "swiss"]
[EventCountry "ESP"]
[SourceTitle "playchess.com"]
[Source "ChessBase"]
[SourceQuality "1"]
[TimeControl "5400+30"]

1. e4 {[%emt 0:00:02]} c6 {[%emt 0:00:08]} 2. d4 {[%emt 0:00:04]} d5 {[%emt 0:00:11]} 3. e5 {[%emt 0:00:03]} g6 {[%emt 0:00:49]} 4. Nf3 {[%emt 0:01:47]} Bg7 {[%emt 0:00:41]} 5. c4 {[%emt 0:01:08]} Nh6 {[%emt 0:02:02]} 6. Nc3 {[%emt 0:03:13]} O-O {[%emt 0:02:02]} 7. cxd5 {[%emt 0:02:16]} cxd5 {[%emt 0:00:08]} 8. Qb3 {[%emt 0:01:47]} Nc6 {[%emt 0:03:03]} 9. Bxh6 {[%emt 0:18:03]} Bxh6 {[%emt 0:01:43]} 10. Be2 {[%emt 0:02:46]} Bg4 {[%emt 0:12:50]} 11. Rd1 {[%emt 0:04:24]} e6 {[%emt 0:09:41]} 12. Qxb7 {[%emt 0:12:55]} Na5 {[%emt 0:04:55]} 13. Qa6 {[%emt 0:00:09]} Rb8 {[%emt 0:01:36]} 14. b3 {[%emt 0:10:26]} Rc8 {[%emt 0:02:49]} 15. Na4 {[%emt 0:08:32]} Rc2 {[%emt 0:01:37]} 16. Nc5 {[%emt 0:01:33]} Qc7 {[%emt 0:09:20]} 17. Bb5 {[%emt 0:20:04]} Rb8 {[%emt 0:12:43]} 18. b4 {[%emt 0:04:22]} Rb2 {[%emt 0:11:32]} 19. a3 {[%emt 0:01:49]} Bxf3 {[%emt 0:02:41]} 20. gxf3 {[%emt 0:00:16]} Nb3 {[%emt 0:00:03]} 21. Qc6 {[%emt 0:02:12]} Qd8 {[%emt 0:03:16]} 22. Ba4 {[%emt 0:02:07]} Qh4 {[%emt 0:00:54]} 23. Nd3 {[%emt 0:00:51]} Nxd4 {[%emt 0:00:59]} 24. Nxb2 {[%emt 0:01:07]} Nxc6 {[%emt 0:00:39]} 25. Bxc6 {[%emt 0:00:01]} Qh5 {[%emt 0:01:29]} 0-1

[Event "17th Memorial Lezcano Montalvo 2025"]
[Site "Gran Canaria"]
[Date "2025.04.13"]
[Round "2.10"]
[White "Fiorito, Francisco"]
[Black "Camino Carrio, Nicanor"]
[Result "1-0"]
[Annotator "ChessBase"]
[ECO "A48"]
[WhiteElo "2431"]
[BlackElo "2045"]
[PlyCount "45"]
[EventDate "2025.04.13"]
[EventType "swiss"]
[EventCountry "ESP"]
[SourceTitle "playchess.com"]
[Source "ChessBase"]
[SourceQuality "1"]
[TimeControl "5400+30"]

1. d4 {[%emt 0:00:03]} Nf6 {[%emt 0:00:53]} 2. Nf3 {[%emt 0:00:08]} g6 {[%emt 0:00:35]} 3. Bf4 {[%emt 0:00:06]} Bg7 {[%emt 0:00:55]} 4. e3 {[%emt 0:00:06]} d6 {[%emt 0:00:23]} 5. h3 {[%emt 0:00:05]} O-O {[%emt 0:01:02]} 6. Be2 {[%emt 0:00:07]} Nc6 {[%emt 0:00:46]} 7. Bh2 {[%emt 0:00:26]} Nd7 {[%emt 0:01:20]} 8. O-O {[%emt 0:00:16]} e5 {[%emt 0:00:10]} 9. c4 {[%emt 0:00:09]} Kh8 {[%emt 0:00:41]} 10. Nc3 {[%emt 0:01:12]} f5 {[%emt 0:00:27]} 11. Rc1 {[%emt 0:08:08]} e4 {[%emt 0:07:39]} 12. Nd2 {[%emt 0:00:12]} g5 {[%emt 0:00:07]} 13. f3 {[%emt 0:20:31]} f4 {[%emt 0:02:25]} 14. fxe4 {[%emt 0:10:11]} fxe3 {[%emt 0:00:56]} 15. Nf3 {[%emt 0:01:46]} g4 {[%emt 0:05:05]} 16. hxg4 {[%emt 0:00:57]} Nf6 {[%emt 0:00:09]} 17. d5 {[%emt 0:08:37]} Nxg4 {[%emt 0:12:01]} 18. dxc6 {[%emt 0:12:13]} Rxf3 {[%emt 0:00:16]} 19. Rxf3 {[%emt 0:01:20]} Nxh2 {[%emt 0:00:13]} 20. Rf7 {[%emt 0:03:04]} Be5 {[%emt 0:04:39]} 21. cxb7 {[%emt 0:08:30]} Qh4 {[%emt 0:02:03]} 22. Qe1 {[%emt 0:02:08]} Bg3 {[%emt 0:01:55]} 23. Qxg3 {[%emt 0:00:21]} 1-0

[Event "17th Memorial Lezcano Montalvo 2025"]
[Site "Gran Canaria"]
[Date "2025.04.13"]
[Round "2.11"]
[White "Fernandez Lozano, Francesc"]
[Black "Yelisieiev, Yevhenii"]
[Result "0-1"]
[Annotator "ChessBase"]
[ECO "B23"]
[WhiteElo "2042"]
[BlackElo "2413"]
[PlyCount "90"]
[EventDate "2025.04.13"]
[EventType "swiss"]
[EventCountry "ESP"]
[SourceTitle "playchess.com"]
[Source "ChessBase"]
[SourceQuality "1"]
[TimeControl "5400+30"]

1. e4 {[%emt 0:00:02]} c5 {[%emt 0:00:07]} 2. Nc3 {[%emt 0:00:05]} Nc6 {[%emt 0:00:07]} 3. Bb5 {[%emt 0:00:08]} Nd4 {[%emt 0:00:25]} 4. Bc4 {[%emt 0:00:09]} Nf6 {[%emt 0:02:28]} 5. d3 {[%emt 0:00:56]} e6 {[%emt 0:02:25]} 6. a4 {[%emt 0:04:29]} d5 {[%emt 0:04:53]} 7. Ba2 {[%emt 0:01:00]} dxe4 {[%emt 0:02:48]} 8. dxe4 {[%emt 0:00:46]} b6 {[%emt 0:02:36]} 9. Be3 {[%emt 0:03:09]} Ba6 {[%emt 0:05:44]} 10. f3 {[%emt 0:02:50]} Qc7 {[%emt 0:05:34]} 11. Nb5 {[%emt 0:14:15]} Nxb5 {[%emt 0:04:30]} 12. axb5 {[%emt 0:00:35]} Bxb5 {[%emt 0:00:43]} 13. c4 {[%emt 0:02:45]} Bc6 {[%emt 0:01:10]} 14. Ne2 {[%emt 0:05:09]} Bd6 {[%emt 0:01:28]} 15. Qc2 {[%emt 0:01:45]} O-O-O {[%emt 0:07:56]} 16. O-O-O {[%emt 0:03:31]} Bxh2 {[%emt 0:03:31]} 17. Rxd8+ {[%emt 0:03:24]} Rxd8 {[%emt 0:00:54]} 18. Bb3 {[%emt 0:05:33]} Be5 {[%emt 0:02:10]} 19. Bd2 {[%emt 0:09:23]} h6 {[%emt 0:03:10]} 20. Rd1 {[%emt 0:02:50]} Nh5 {[%emt 0:00:46]} 21. Kb1 {[%emt 0:02:42]} Nf4 {[%emt 0:08:49]} 22. Nxf4 {[%emt 0:00:20]} Bxf4 {[%emt 0:00:05]} 23. Bxf4 {[%emt 0:00:21]} Qxf4 {[%emt 0:01:35]} 24. Rxd8+ {[%emt 0:00:10]} Kxd8 {[%emt 0:00:05]} 25. Ba4 {[%emt 0:01:07]} Qd6 {[%emt 0:00:57]} 26. Bxc6 {[%emt 0:03:41]} Qxc6 {[%emt 0:00:05]} 27. e5 {[%emt 0:01:53]} Qc7 {[%emt 0:01:54]} 28. Qe4 {[%emt 0:01:02]} Ke7 {[%emt 0:00:57]} 29. f4 {[%emt 0:06:08]} Qd7 {[%emt 0:00:19]} 30. g3 {[%emt 0:01:16]} g6 {[%emt 0:00:26]} 31. Qf3 {[%emt 0:05:50]} h5 {[%emt 0:00:21]} 32. b3 {[%emt 0:01:52]} Kf8 {[%emt 0:00:31]} 33. Kc2 {[%emt 0:01:52]} Kg7 {[%emt 0:00:53]} 34. Qh1 {[%emt 0:01:35]} a5 {[%emt 0:01:17]} 35. Qh4 {[%emt 0:01:20]} a4 {[%emt 0:00:51]} 36. bxa4 {[%emt 0:05:04]} Qxa4+ {[%emt 0:00:04]} 37. Kd2 {[%emt 0:00:30]} Qb4+ {[%emt 0:04:22]} 38. Kd3 {[%emt 0:00:36]} Qb1+ {[%emt 0:00:22]} 39. Kd2 {[%emt 0:00:45]} Qf5 {[%emt 0:03:50]} 40. Ke3 {[%emt 0:04:48]} f6 {[%emt 0:00:38]} 41. Qh1 {[%emt 0:02:39]} fxe5 {[%emt 0:00:26]} 42. Qb7+ {[%emt 0:00:20]} Kh6 {[%emt 0:01:47]} 43. Qb8 {[%emt 0:00:13]} exf4+ {[%emt 0:00:07]} 44. gxf4 {[%emt 0:00:03]} Qf6 {[%emt 0:00:55]} 45. Qxb6 {[%emt 0:01:07]} Qc3+ {[%emt 0:25:11]} 0-1

[Event "17th Memorial Lezcano Montalvo 2025"]
[Site "Gran Canaria"]
[Date "2025.04.13"]
[Round "2.12"]
[White "Ambartsumova, Karina"]
[Black "Roquero Redondo, Miguel"]
[Result "1/2-1/2"]
[Annotator "ChessBase"]
[ECO "D35"]
[WhiteElo "2405"]
[BlackElo "2037"]
[PlyCount "50"]
[EventDate "2025.04.13"]
[EventType "swiss"]
[EventCountry "ESP"]
[SourceTitle "playchess.com"]
[Source "ChessBase"]
[SourceQuality "1"]
[TimeControl "5400+30"]

1. d4 {[%emt 0:00:09]} d5 {[%emt 0:00:14]} 2. c4 {[%emt 0:00:40]} e6 {[%emt 0:00:07]} 3. Nc3 {[%emt 0:00:50]} Nf6 {[%emt 0:00:08]} 4. cxd5 {[%emt 0:00:28]} exd5 {[%emt 0:00:08]} 5. Bg5 {[%emt 0:00:23]} c6 {[%emt 0:00:54]} 6. e3 {[%emt 0:01:03]} Be7 {[%emt 0:01:03]} 7. Bd3 {[%emt 0:00:41]} Nbd7 {[%emt 0:01:22]} 8. h3 {[%emt 0:01:02]} Nf8 {[%emt 0:01:07]} 9. Bf4 {[%emt 0:02:37]} Ne6 {[%emt 0:03:48]} 10. Be5 {[%emt 0:00:56]} O-O {[%emt 0:01:49]} 11. Qc2 {[%emt 0:08:06]} g6 {[%emt 0:11:17]} 12. Nf3 {[%emt 0:02:26]} Ng7 {[%emt 0:04:20]} 13. g4 {[%emt 0:07:10]} a5 {[%emt 0:07:28]} 14. O-O-O {[%emt 0:04:26]} b5 {[%emt 0:07:48]} 15. Kb1 {[%emt 0:08:18]} a4 {[%emt 0:12:23]} 16. g5 {[%emt 0:13:02]} Nfe8 {[%emt 0:08:12]} 17. e4 {[%emt 0:01:29]} Qa5 {[%emt 0:01:38]} 18. exd5 {[%emt 0:04:43]} b4 {[%emt 0:01:04]} 19. Ne4 {[%emt 0:04:46]} cxd5 {[%emt 0:04:12]} 20. Nf6+ {[%emt 0:06:59]} Bxf6 {[%emt 0:01:50]} 21. gxf6 {[%emt 0:00:07]} Nh5 {[%emt 0:02:21]} 22. Qc1 {[%emt 0:09:08]} Ba6 {[%emt 0:03:29]} 23. Qh6 {[%emt 0:13:27]} Bxd3+ {[%emt 0:05:33]} 24. Rxd3 {[%emt 0:00:01]} Qa6 {[%emt 0:00:13]} 25. Rd2 {[%emt 0:04:05]} Qe6 {[%emt 0:01:29]} 1/2-1/2

[Event "17th Memorial Lezcano Montalvo 2025"]
[Site "Gran Canaria"]
[Date "2025.04.13"]
[Round "2.13"]
[White "Rodriguez Melian, Jose Luis"]
[Black "Fiorito, Joaquin"]
[Result "0-1"]
[Annotator "ChessBase"]
[ECO "E71"]
[WhiteElo "2029"]
[BlackElo "2402"]
[PlyCount "133"]
[EventDate "2025.04.13"]
[EventType "swiss"]
[EventCountry "ESP"]
[SourceTitle "playchess.com"]
[Source "ChessBase"]
[SourceQuality "1"]
[TimeControl "5400+30"]

1. d4 {[%emt 0:00:09]} Nf6 {[%emt 0:00:05]} 2. c4 {[%emt 0:00:02]} g6 {[%emt 0:00:06]} 3. Nc3 {[%emt 0:00:05]} Bg7 {[%emt 0:00:05]} 4. e4 {[%emt 0:00:07]} d6 {[%emt 0:00:03]} 5. h3 {[%emt 0:00:04]} O-O {[%emt 0:00:06]} 6. Be3 {[%emt 0:00:03]} c5 {[%emt 0:00:03]} 7. dxc5 {[%emt 0:00:28]} Qa5 {[%emt 0:00:31]} 8. Bd3 {[%emt 0:00:02]} dxc5 {[%emt 0:00:09]} 9. e5 {[%emt 0:01:04]} Nh5 {[%emt 0:00:11]} 10. Nf3 {[%emt 0:16:26]} Nc6 {[%emt 0:00:11]} 11. Qe2 {[%emt 0:39:06]} Nxe5 {[%emt 0:03:22]} 12. Nxe5 {[%emt 0:01:01]} Bxe5 {[%emt 0:00:14]} 13. O-O {[%emt 0:00:12]} Bxc3 {[%emt 0:07:20]} 14. bxc3 {[%emt 0:00:18]} Be6 {[%emt 0:01:19]} 15. g4 {[%emt 0:01:30]} Ng7 {[%emt 0:03:12]} 16. Be4 {[%emt 0:08:08]} Qa6 {[%emt 0:02:48]} 17. Rfb1 {[%emt 0:02:26]} Bxc4 {[%emt 0:04:52]} 18. Qf3 {[%emt 0:00:08]} Qd6 {[%emt 0:08:08]} 19. Rd1 {[%emt 0:07:55]} Qe5 {[%emt 0:04:04]} 20. Bf4 {[%emt 0:00:28]} Qf6 {[%emt 0:05:50]} 21. g5 {[%emt 0:00:04]} Qe6 {[%emt 0:07:20]} 22. Re1 {[%emt 0:00:02]} Rad8 {[%emt 0:06:52]} 23. Bxb7 {[%emt 0:01:38]} Rd3 {[%emt 0:04:27]} 24. Qxd3 {[%emt 0:01:56]} Bxd3 {[%emt 0:00:19]} 25. Rxe6 {[%emt 0:00:10]} Nxe6 {[%emt 0:00:07]} 26. Be3 {[%emt 0:00:16]} Bc4 {[%emt 0:01:42]} 27. Rd1 {[%emt 0:02:33]} Rb8 {[%emt 0:01:28]} 28. Bf3 {[%emt 0:02:45]} Bxa2 {[%emt 0:12:11]} 29. Rd7 {[%emt 0:04:07]} a5 {[%emt 0:00:36]} 30. Ra7 {[%emt 0:01:55]} Rb5 {[%emt 0:01:20]} 31. Bc6 {[%emt 0:00:11]} Rb1+ {[%emt 0:03:04]} 32. Kh2 {[%emt 0:00:09]} Rd1 {[%emt 0:00:43]} 33. Bf3 {[%emt 0:01:17]} Rd3 {[%emt 0:03:19]} 34. Rxa5 {[%emt 0:00:24]} Bd5 {[%emt 0:01:04]} 35. Bg4 {[%emt 0:00:07]} Rxc3 {[%emt 0:01:32]} 36. Bxe6 {[%emt 0:00:17]} Bxe6 {[%emt 0:00:09]} 37. Rxc5 {[%emt 0:00:06]} Rd3 {[%emt 0:00:24]} 38. h4 {[%emt 0:01:25]} f6 {[%emt 0:01:09]} 39. gxf6 {[%emt 0:00:39]} exf6 {[%emt 0:00:04]} 40. Rc7 {[%emt 0:00:09]} Bd7 {[%emt 0:00:17]} 41. Kg3 {[%emt 0:00:39]} Kf7 {[%emt 0:00:09]} 42. Ra7 {[%emt 0:02:09]} g5 {[%emt 0:05:26]} 43. hxg5 {[%emt 0:00:17]} fxg5 {[%emt 0:00:02]} 44. Kf3 {[%emt 0:01:42]} Kg6 {[%emt 0:00:15]} 45. Ke4 {[%emt 0:01:14]} Rd1 {[%emt 0:00:32]} 46. Bd4 {[%emt 0:00:42]} Bc6+ {[%emt 0:03:41]} 47. Ke5 {[%emt 0:01:41]} Bg2 {[%emt 0:00:35]} 48. Ra1 {[%emt 0:01:58]} Rd3 {[%emt 0:03:13]} 49. Rg1 {[%emt 0:00:07]} Bf3 {[%emt 0:00:06]} 50. Rc1 {[%emt 0:01:36]} Rb3 {[%emt 0:02:06]} 51. Rc8 {[%emt 0:01:41]} Rb5+ {[%emt 0:00:45]} 52. Bc5 {[%emt 0:00:10]} h5 {[%emt 0:00:34]} 53. Kd4 {[%emt 0:00:15]} h4 {[%emt 0:00:15]} 54. Rh8 {[%emt 0:01:18]} Kf5 {[%emt 0:00:17]} 55. Rf8+ {[%emt 0:00:57]} Kg4 {[%emt 0:00:03]} 56. Kc4 {[%emt 0:00:37]} Rb1 {[%emt 0:00:58]} 57. Bd6 {[%emt 0:01:05]} Rf1 {[%emt 0:00:22]} 58. Bc5 {[%emt 0:00:25]} h3 {[%emt 0:00:45]} 59. Rh8 {[%emt 0:00:13]} Rg1 {[%emt 0:00:20]} 60. Kd3 {[%emt 0:00:16]} Re1 {[%emt 0:01:10]} 61. Bd4 {[%emt 0:00:42]} Re7 {[%emt 0:00:54]} 62. Be3 {[%emt 0:01:02]} Bc6 {[%emt 0:01:34]} 63. Rg8 {[%emt 0:00:46]} Rxe3+ {[%emt 0:01:41]} 64. Kxe3 {[%emt 0:00:02]} h2 {[%emt 0:00:06]} 65. f4 {[%emt 0:00:57]} h1=Q {[%emt 0:00:06]} 66. Rxg5+ {[%emt 0:00:02]} Kh4 {[%emt 0:00:01]} 67. Kd4 {[%emt 0:01:35]} 0-1

[Event "17th Memorial Lezcano Montalvo 2025"]
[Site "Gran Canaria"]
[Date "2025.04.13"]
[Round "2.14"]
[White "Gomez Ledo, Roberto Carlos"]
[Black "Sanchez Gonzalez, Diego"]
[Result "0-1"]
[Annotator "ChessBase"]
[ECO "A30"]
[WhiteElo "2396"]
[BlackElo "2025"]
[PlyCount "81"]
[EventDate "2025.04.13"]
[EventType "swiss"]
[EventCountry "ESP"]
[SourceTitle "playchess.com"]
[Source "ChessBase"]
[SourceQuality "1"]
[TimeControl "5400+30"]

1. Nf3 {[%emt 0:00:05]} Nf6 {[%emt 0:00:41]} 2. b3 {[%emt 0:01:17]} g6 {[%emt 0:00:32]} 3. Bb2 {[%emt 0:01:26]} Bg7 {[%emt 0:00:24]} 4. g3 {[%emt 0:01:05]} b6 {[%emt 0:01:18]} 5. Bg2 {[%emt 0:01:04]} Bb7 {[%emt 0:00:12]} 6. O-O {[%emt 0:02:00]} O-O {[%emt 0:01:12]} 7. c4 {[%emt 0:01:37]} c5 {[%emt 0:06:30]} 8. Nc3 {[%emt 0:04:25]} Nc6 {[%emt 0:03:34]} 9. Re1 {[%emt 0:04:32]} d6 {[%emt 0:02:54]} 10. d4 {[%emt 0:04:22]} Nxd4 {[%emt 0:02:01]} 11. Nxd4 {[%emt 0:00:37]} Bxg2 {[%emt 0:00:07]} 12. Kxg2 {[%emt 0:00:12]} cxd4 {[%emt 0:00:12]} 13. Qxd4 {[%emt 0:00:15]} Nd7 {[%emt 0:03:36]} 14. Qd2 {[%emt 0:00:20]} Rc8 {[%emt 0:02:04]} 15. Rad1 {[%emt 0:03:14]} a6 {[%emt 0:08:54]} 16. h4 {[%emt 0:07:24]} h5 {[%emt 0:07:09]} 17. e4 {[%emt 0:02:06]} Nc5 {[%emt 0:04:24]} 18. Re2 {[%emt 0:14:04]} Qd7 {[%emt 0:03:05]} 19. Nd5 {[%emt 0:05:59]} Qb7 {[%emt 0:01:55]} 20. Bxg7 {[%emt 0:05:15]} Kxg7 {[%emt 0:00:11]} 21. Kh2 {[%emt 0:01:00]} b5 {[%emt 0:01:20]} 22. cxb5 {[%emt 0:03:19]} axb5 {[%emt 0:00:32]} 23. f4 {[%emt 0:02:18]} e6 {[%emt 0:05:18]} 24. Qd4+ {[%emt 0:02:44]} f6 {[%emt 0:07:35]} 25. Nb4 {[%emt 0:00:29]} e5 {[%emt 0:04:43]} 26. Qe3 {[%emt 0:05:01]} Rcd8 {[%emt 0:11:06]} 27. Nd5 {[%emt 0:07:47]} Ne6 {[%emt 0:01:24]} 28. Rg2 {[%emt 0:04:03]} f5 {[%emt 0:06:27]} 29. exf5 {[%emt 0:03:26]} Rxf5 {[%emt 0:00:05]} 30. Qe4 {[%emt 0:06:57]} Rdf8 31. Re2 {[%emt 0:00:30]} Nc5 32. Qc2 {[%emt 0:00:30]} Ne6 33. Qb2 {[%emt 0:00:30]} Kh7 34. Rdd2 {[%emt 0:00:30]} Qg7 35. Ne3 {[%emt 0:00:30]} R5f7 36. fxe5 {[%emt 0:00:30]} dxe5 37. Nc2 {[%emt 0:00:30]} Nc5 38. Ne1 {[%emt 0:00:30]} Nd7 39. Nd3 {[%emt 0:00:30]} Rf5 40. Qc3 {[%emt 0:00:30]} Nf6 41. Nf2 {[%emt 0:00:30]} 0-1

[Event "17th Memorial Lezcano Montalvo 2025"]
[Site "Gran Canaria"]
[Date "2025.04.13"]
[Round "2.15"]
[White "Torres Rebolledo, Marcos"]
[Black "Akhvlediani, Irakli"]
[Result "0-1"]
[Annotator "ChessBase"]
[ECO "A43"]
[WhiteElo "2010"]
[BlackElo "2387"]
[PlyCount "120"]
[EventDate "2025.04.13"]
[EventType "swiss"]
[EventCountry "ESP"]
[SourceTitle "playchess.com"]
[Source "ChessBase"]
[SourceQuality "1"]
[TimeControl "5400+30"]

1. d4 {[%emt 0:00:04]} g6 {[%emt 0:00:03]} 2. c4 {[%emt 0:00:35]} Bg7 {[%emt 0:00:05]} 3. Nc3 {[%emt 0:00:08]} c5 {[%emt 0:00:02]} 4. d5 {[%emt 0:00:09]} d6 {[%emt 0:00:04]} 5. e4 {[%emt 0:01:20]} e6 {[%emt 0:00:03]} 6. Bd3 {[%emt 0:01:04]} Ne7 {[%emt 0:00:03]} 7. Bf4 {[%emt 0:01:06]} O-O {[%emt 0:00:29]} 8. Qd2 {[%emt 0:01:15]} e5 {[%emt 0:07:52]} 9. Bh6 {[%emt 0:08:28]} f5 {[%emt 0:05:26]} 10. h4 {[%emt 0:11:47]} f4 {[%emt 0:02:38]} 11. Bxg7 {[%emt 0:01:11]} Kxg7 {[%emt 0:00:02]} 12. Nf3 {[%emt 0:09:14]} h6 {[%emt 0:01:05]} 13. O-O-O {[%emt 0:01:05]} Nd7 {[%emt 0:01:36]} 14. Rdf1 {[%emt 0:04:41]} Nf6 {[%emt 0:00:44]} 15. Be2 {[%emt 0:03:07]} a6 {[%emt 0:01:36]} 16. g3 {[%emt 0:02:52]} fxg3 {[%emt 0:08:41]} 17. fxg3 {[%emt 0:00:23]} b5 {[%emt 0:01:05]} 18. cxb5 {[%emt 0:08:34]} axb5 {[%emt 0:13:04]} 19. Bxb5 {[%emt 0:00:37]} Bd7 {[%emt 0:21:02]} 20. Bc4 {[%emt 0:08:40]} Qa5 {[%emt 0:03:38]} 21. Qc2 {[%emt 0:02:34]} Ng4 {[%emt 0:04:10]} 22. Qe2 {[%emt 0:02:18]} Ng8 {[%emt 0:05:50]} 23. Nh2 {[%emt 0:06:34]} N8f6 {[%emt 0:00:20]} 24. Nxg4 {[%emt 0:00:26]} Bxg4 {[%emt 0:00:12]} 25. Qc2 {[%emt 0:00:38]} Qb4 {[%emt 0:04:45]} 26. Qb3 {[%emt 0:06:28]} Rab8 {[%emt 0:11:32]} 27. Rh2 {[%emt 0:03:07]} Qxb3 {[%emt 0:07:16]} 28. Bxb3 {[%emt 0:01:03]} Nh5 {[%emt 0:00:32]} 29. Rhf2 {[%emt 0:07:12]} Nxg3 {[%emt 0:00:22]} 30. Rxf8 {[%emt 0:00:07]} Rxf8 {[%emt 0:00:02]} 31. Rxf8 {[%emt 0:01:21]} Kxf8 {[%emt 0:00:30]} 32. a4 {[%emt 0:02:01]} Ne2+ {[%emt 0:00:42]} 33. Kd2 {[%emt 0:01:16]} Nxc3 {[%emt 0:00:08]} 34. bxc3 {[%emt 0:00:18]} Ke7 {[%emt 0:00:11]} 35. a5 {[%emt 0:01:47]} Kd8 {[%emt 0:00:16]} 36. Ba4 {[%emt 0:02:01]} Kc7 {[%emt 0:00:30]} 37. Be8 {[%emt 0:00:36]} g5 {[%emt 0:00:03]} 38. hxg5 {[%emt 0:00:10]} hxg5 {[%emt 0:00:01]} 39. Ke3 {[%emt 0:00:58]} Kb7 {[%emt 0:01:26]} 40. Bb5 {[%emt 0:00:07]} Ka7 {[%emt 0:00:14]} 41. Kf2 {[%emt 0:00:57]} Bd1 {[%emt 0:01:26]} 42. Bc4 {[%emt 0:02:15]} Bc2 {[%emt 0:00:33]} 43. Kf3 {[%emt 0:00:19]} Bd1+ {[%emt 0:01:06]} 44. Kf2 {[%emt 0:00:18]} Kb7 {[%emt 0:00:29]} 45. Kg3 {[%emt 0:00:22]} Kc7 {[%emt 0:00:12]} 46. Kf2 {[%emt 0:00:46]} Bc2 {[%emt 0:00:04]} 47. Kf3 {[%emt 0:00:04]} Bb1 {[%emt 0:01:17]} 48. Kg4 {[%emt 0:01:05]} Bxe4 {[%emt 0:00:02]} 49. Kxg5 {[%emt 0:00:08]} Bc2 {[%emt 0:00:02]} 50. Kf6 {[%emt 0:01:02]} e4 {[%emt 0:00:30]} 51. Ke7 {[%emt 0:00:51]} Bd3 {[%emt 0:00:06]} 52. Bxd3 {[%emt 0:00:14]} exd3 {[%emt 0:00:04]} 53. a6 {[%emt 0:00:08]} d2 {[%emt 0:00:03]} 54. a7 {[%emt 0:00:04]} Kb7 {[%emt 0:00:03]} 55. Kxd6 {[%emt 0:00:10]} d1=Q {[%emt 0:00:19]} 56. Kxc5 {[%emt 0:00:13]} Qb3 {[%emt 0:00:05]} 57. Kd6 {[%emt 0:01:23]} Qxc3 {[%emt 0:00:07]} 58. a8=Q+ {[%emt 0:01:12]} Kxa8 {[%emt 0:00:03]} 59. Kd7 {[%emt 0:00:09]} Kb7 {[%emt 0:00:04]} 60. d6 {[%emt 0:00:05]} Qe5 {[%emt 0:00:04]} 0-1